bitfinex/quotes_SOLUSD_20250310
["timestamp","ask_amount","ask_price","bid_price","bid_amount"]
[1741620910326,1.5073129,124.42,124.34,0.28432314]
[1741620910627,1.5073129,124.42,124.3,0.28432314]
[1741620910942,26.2653008,124.43,124.3,23.53984588]
[1741620911117,1.50759574,124.42,124.3,26.11646019]
[1741620911307,1.50759574,124.42,124.32,18.933972]
[1741620911630,1.50759574,124.42,124.32,0.28432314]
[1741620911817,1.50759574,124.42,124.32,18.933972]
[1741620912016,1.5074578,124.41,124.32,0.28432314]
[1741620912324,3.5903,124.4,124.32,0.28432314]
[1741620912510,1.50811903,124.39,124.3,8.32922314]
[1741620913223,1.50811903,124.39,124.27,0.28432314]
[1741620913421,5.09868696,124.4,124.29,0.28432314]
[1741620913610,3.5903,124.4,124.33,0.28432314]
[1741620913809,0.03,124.42,124.37,0.28432314]
[1741620914025,0.03,124.42,124.39,0.28432314]
[1741620914716,0.03,124.42,124.41,20.28432314]
[1741620914909,0.03,124.42,124.41,38.933972]
[1741620915111,0.03,124.42,124.41,0.28432314]
[1741620915432,0.03,124.42,124.41,8.32222314]
[1741620916038,0.03,124.42,124.41,0.28432314]
[1741620916218,199.5114,124.51,124.41,8.18006157]
[1741620916219,1.50675211,124.48,124.41,8.18006157]
[1741620916413,199.5114,124.51,124.42,0.28432314]
[1741620916414,7.3739033,124.49,124.42,0.28432314]
[1741620916618,1.50676128,124.5,124.42,0.28432314]
[1741620917221,1.50652503,124.5,124.43,0.14216157]
[1741620917536,1.50648225,124.5,124.43,0.14216157]
[1741620917736,1.50648225,124.5,124.41,0.14216157]
[1741620917950,1.50648225,124.5,124.42,0.14216157]
[1741620918316,1.50648225,124.5,124.42,0.28432314]
[1741620918826,7.46039257,124.5,124.42,18.933972]
[1741620919023,7.8314,124.51,124.42,0.28432314]
[1741620919235,7.8314,124.51,124.46,0.28432314]
[1741620919919,9.33779598,124.51,124.44,0.28432314]
[1741620920125,17.36929598,124.51,124.44,0.28432314]
[1741620920429,17.36929598,124.51,124.41,0.14216157]
[1741620920635,20.64964886,124.5,124.39,0.14216157]
[1741620920828,18.64964886,124.48,124.37,8.18236157]
[1741620921023,12.64720663,124.47,124.37,8.18236157]
[1741620921231,18.64964886,124.46,124.35,0.14216157]
[1741620921454,9.54291582,124.45,124.35,0.14216157]
[1741620921740,1.50761582,124.45,124.33,32.14678623]
[1741620922039,11.14,124.44,124.34,0.28432314]
[1741620922220,7.8758,124.42,124.34,0.28432314]
[1741620922420,9.38352165,124.42,124.34,0.28432314]
[1741620924119,28.56122165,124.42,124.33,0.14216157]
[1741620924321,48.65442165,124.42,124.32,0.28432314]
[1741620924523,17.42122165,124.42,124.32,0.28432314]
[1741620924721,11.14,124.41,124.32,0.28432314]
[1741620924935,1.50786941,124.4,124.32,0.28432314]
[1741620925233,18.64964886,124.39,124.26,20.1187]
[1741620925423,9.54829498,124.38,124.27,0.14216157]
[1741620925935,1.50837717,124.41,124.29,0.28432314]
[1741620926147,9.38354986,124.42,124.32,0.28432314]
[1741620926317,17.42104986,124.42,124.32,0.28432314]
[1741620926652,9.38354986,124.42,124.32,18.933972]
[1741620926815,15.9133,124.42,124.32,0.28432314]
[1741620927017,1.50759298,124.41,124.32,0.14216157]
[1741620927335,9.54589298,124.41,124.28,28.44642314]
[1741620927522,15.9132,124.42,124.3,18.933972]
[1741620927832,8.187e-05,124.32,124.3,19.52183078]
[1741620928038,3.116e-05,124.34,124.33,38.933972]
[1741620928226,199.6144,124.47,124.38,0.28432314]
[1741620928420,1.50709674,124.46,124.38,0.28432314]
[1741620928640,12.64709674,124.46,124.35,0.28432314]
[1741620928834,18.64964886,124.45,124.35,0.28432314]
[1741620929040,18.64964886,124.43,124.31,8.50014748]
[1741620929245,7.5562,124.41,124.32,0.28432314]
[1741620929419,8.0392,124.39,124.32,0.28432314]
[1741620929741,1.50811352,124.38,124.31,0.28432314]
[1741620930139,1.50811352,124.38,124.3,0.14216157]
[1741620930325,1.50811352,124.38,124.3,0.28432314]
[1741620931125,15.0484,124.4,124.33,0.28432314]
[1741620931463,11.947,124.4,124.33,8.32692314]
[1741620931739,11.947,124.4,124.33,0.28432314]
[1741620931948,11.947,124.4,124.33,8.32722314]
[1741620932239,1.50782159,124.39,124.33,0.28432314]
[1741620932421,1.50782159,124.39,124.33,8.32712314]
[1741620932841,1.50782159,124.39,124.29,20.1142]
[1741620933051,1.50782159,124.39,124.31,0.28432314]
[1741620933351,1.50782159,124.39,124.31,8.32822314]
[1741620933352,8.0398,124.38,124.31,8.32822314]
[1741620933553,1.50805476,124.37,124.31,8.32822314]
[1741620933751,1.50805476,124.37,124.31,8.0439]
[1741620934061,1.50805476,124.37,124.32,0.28432314]
[1741620934449,1.50807775,124.38,124.32,0.28432314]
[1741620934655,9.54736923,124.39,124.32,0.28432314]
[1741620934955,97.65631735,124.4,124.32,0.28432314]
[1741620935163,24.59521735,124.4,124.32,0.28432314]
[1741620935669,24.59521735,124.4,124.33,8.0431]
[1741620935848,13.45521735,124.4,124.33,8.0431]
[1741620936502,3.9084,124.4,124.34,0.28432314]
[1741620936641,7.5562,124.41,124.34,0.28432314]
[1741620936841,12.6473871,124.44,124.35,0.14216157]
[1741620937070,12.98849052,124.45,124.35,18.933972]
[1741620937376,12.98849052,124.45,124.35,0.14216157]
[1741620937377,41.11239052,124.45,124.35,0.14216157]
[1741620937574,21.02409052,124.45,124.36,0.28432314]
[1741620938558,41.11239052,124.45,124.36,0.28432314]
[1741620938751,11.14,124.44,124.36,0.28432314]
[1741620938944,1.50749072,124.43,124.36,20.28432314]
[1741620939264,1.50749072,124.43,124.33,0.28432314]
[1741620939443,18.64964886,124.42,124.33,0.28432314]
[1741620939648,18.64964886,124.39,124.28,8.0463]
[1741620939840,1.50824054,124.38,124.29,0.14216157]
[1741620940062,1.50824054,124.38,124.33,0.063]
[1741620940264,11.14,124.37,124.33,0.063]
[1741620940669,1.50810529,124.36,124.33,0.063]
[1741620940969,12.64836265,124.37,124.33,0.063]
[1741620941369,3.6903,124.36,124.33,0.063]
[1741620941553,7.2028,124.33,124.26,0.063]
[1741620941758,20.15856276,124.32,124.26,0.063]
[1741620941958,11.14,124.31,124.26,0.063]
[1741620942160,1.50917495,124.3,124.26,0.063]
[1741620943576,8.0456,124.29,124.26,0.063]
[1741620943867,1.5093513,124.28,124.26,0.063]
[1741620944956,7.9586,124.26,124.21,11.71776164]
[1741620945151,9.4681686,124.26,124.21,11.71776164]
[1741620945356,7.9586,124.26,124.22,0.28432314]
[1741620945553,7.9586,124.26,124.21,11.71776164]
[1741620945762,17.5157866,124.26,124.21,11.71776164]
[1741620946361,17.5158866,124.26,124.2,0.063]
[1741620946668,9.4680866,124.26,124.2,0.063]
[1741620946975,7.9586,124.26,124.21,0.28432314]
[1741620947286,1.50940067,124.25,124.2,0.063]
[1741620947660,0.16847662,124.22,124.2,0.063]
[1741620947857,0.16847662,124.22,124.2,0.20516157]
[1741620949660,0.16847662,124.22,124.21,28.33512314]
[1741620949865,4.342e-05,124.23,124.22,0.28432314]
[1741620950067,7.01e-06,124.24,124.22,18.933972]
[1741620950275,0.16901833,124.26,124.25,0.28432314]
[1741620950457,4.774e-05,124.27,124.26,20.28432314]
[1741620950664,0.15358499,124.29,124.26,20.28432314]
[1741620950965,0.15358499,124.29,124.27,38.933972]
[1741620951165,8.499e-05,124.29,124.28,0.28432314]
[1741620951373,0.02173414,124.3,124.28,0.87307086]
[1741620951571,0.02173414,124.3,124.29,18.933972]
[1741620951771,0.02173414,124.3,124.29,26.979572]
[1741620951969,0.02173414,124.3,124.29,8.32992314]
[1741620952674,0.02173414,124.3,124.29,0.28432314]
[1741620952991,0.02173414,124.3,124.24,0.28432314]
[1741620953483,7.682,124.29,124.22,0.28432314]
[1741620953678,9.19113128,124.29,124.22,0.28432314]
[1741620954581,7.682,124.29,124.22,8.33442314]
[1741620955182,0.05173414,124.3,124.24,0.28432314]
[1741620955764,0.05173414,124.3,124.24,8.33302314]
[1741620955972,0.05173414,124.3,124.24,0.28432314]
[1741620956172,0.05173414,124.3,124.23,28.33372314]
[1741620956374,0.05173414,124.3,124.23,0.28432314]
[1741620956689,1.560527,124.3,124.23,0.28432314]
[1741620957086,1.560527,124.3,124.23,0.14216157]
[1741620957287,0.05173414,124.3,124.23,0.14216157]
[1741620957592,0.05173414,124.3,124.24,0.14216157]
[1741620957884,0.05173414,124.3,124.21,4.02969364]
[1741620958086,18.64964886,124.29,124.2,0.20516157]
[1741620958277,12.64953011,124.28,124.2,0.34732314]
[1741620958475,1.50931518,124.27,124.2,0.34732314]
[1741620958671,11.14,124.28,124.2,0.20516157]
[1741620958871,7.2837,124.26,124.2,0.063]
[1741620959280,8.79321735,124.26,124.2,0.063]
[1741620959489,7.2837,124.26,124.21,0.28432314]
[1741620959671,7.2837,124.26,124.21,0.14216157]
[1741620959869,7.2837,124.26,124.2,0.34732314]
[1741620960106,15.3314,124.26,124.2,0.34732314]
[1741620960272,1.50942426,124.25,124.2,0.34732314]
[1741620960480,7.2837,124.26,124.21,0.28432314]
[1741620960772,15.3313,124.26,124.21,0.28432314]
[1741620961008,15.3313,124.26,124.2,0.063]
[1741620961203,1.50949863,124.25,124.2,0.063]
[1741620961504,15.3314,124.26,124.21,0.28432314]
[1741620961669,1.50943653,124.25,124.2,0.063]
[1741620961865,8.0489,124.24,124.2,0.063]
[1741620962069,8.79330123,124.26,124.2,0.063]
[1741620962369,15.3314,124.26,124.2,0.063]
[1741620962769,1.50950044,124.25,124.2,0.063]
[1741620962998,16.84101333,124.26,124.2,0.063]
[1741620963797,8.0489,124.24,124.2,0.063]
[1741620964001,9.55848731,124.24,124.2,0.063]
[1741620964173,5.28561694,124.25,124.2,0.063]
[1741620964587,13.33391694,124.25,124.2,0.063]
[1741620965082,3.7758,124.25,124.2,0.063]
[1741620965493,7.2837,124.26,124.2,0.34732314]
[1741620965793,7.2837,124.26,124.24,0.28432314]
[1741620965991,7.2837,124.26,124.24,0.14216157]
[1741620966692,7.2837,124.26,124.22,8.19216157]
[1741620966693,3.8577,124.29,124.25,20.0]
[1741620966896,0.05173414,124.3,124.25,20.0]
[1741620966897,0.05173414,124.3,124.26,0.28432314]
[1741620967099,0.03,124.29,124.26,0.28432314]
[1741620967793,0.16936966,124.27,124.26,28.33192314]
[1741620967994,6.966e-05,124.27,124.26,47.57099932]
[1741620968203,0.18045252,124.29,124.28,0.28432314]
[1741620968204,9.472e-05,124.29,124.28,0.28432314]
[1741620968885,9.472e-05,124.29,124.27,0.28432314]
[1741620969294,9.472e-05,124.29,124.28,20.28432314]
[1741620969781,0.17957724,124.3,124.29,0.28432314]
[1741620969986,0.17957724,124.3,124.29,26.979572]
[1741620970188,0.1699748,124.33,124.32,20.28432314]
[1741620971593,0.1699748,124.33,124.32,0.28432314]
[1741620972175,0.1699748,124.33,124.26,54.57767776]
[1741620972176,0.1699748,124.33,124.28,0.28432314]
[1741620972383,9.72152397,124.33,124.28,0.28432314]
[1741620972586,0.1699748,124.33,124.28,0.28432314]
[1741620972793,8.2130748,124.33,124.27,0.28432314]
[1741620973694,1.50857285,124.32,124.25,0.28432314]
[1741620974091,8.0444,124.31,124.25,8.33252314]
[1741620974396,0.1699748,124.33,124.25,26.982172]
[1741620974587,0.1699748,124.33,124.25,47.102872]
[1741620975372,0.1699748,124.33,124.27,0.28432314]
[1741620975578,0.1699748,124.33,124.32,20.0]
[1741620975796,0.1699748,124.33,124.32,38.933972]
[1741620976099,0.1699748,124.33,124.32,46.977672]
[1741620976603,7.48e-05,124.33,124.32,46.977672]
[1741620977302,7.48e-05,124.33,124.32,0.28432314]
[1741620978192,7.48e-05,124.33,124.29,8.0451]
[1741620978498,7.48e-05,124.33,124.3,0.28432314]
[1741620979498,0.0300748,124.33,124.3,0.28432314]
[1741620979905,0.0300748,124.33,124.3,0.14216157]
[1741620980082,0.0300748,124.33,124.27,18.933972]
[1741620980395,0.0300748,124.33,124.26,7.73578221]
[1741620980396,0.0300748,124.33,124.29,0.28432314]
[1741620980604,0.0300748,124.33,124.26,3.6475]
[1741620980814,1.50846519,124.32,124.26,3.6475]
[1741620981789,1.50846519,124.32,124.24,0.28432314]
[1741620982192,8.0444,124.31,124.24,0.28432314]
[1741620982379,1.50899867,124.3,124.24,0.28432314]
[1741620982575,1.50899867,124.3,124.23,8.0495]
[1741620982994,1.50899867,124.3,124.22,0.14216157]
[1741620983515,1.50899867,124.3,124.22,0.28432314]
[1741620983880,1.50899867,124.3,124.22,0.14216157]
[1741620984096,28.1598,124.29,124.2,0.20516157]
[1741620984297,28.1598,124.29,124.2,0.34732314]
[1741620984298,12.629539,124.28,124.2,0.34732314]
[1741620984502,12.629539,124.28,124.21,0.28432314]
[1741620985381,11.12,124.28,124.21,0.28432314]
[1741620985787,9.55452774,124.3,124.21,0.28432314]
[1741620985987,31.66712774,124.3,124.2,0.063]
[1741620986192,29.66712774,124.3,124.2,8.39872314]
[1741620987099,9.55452774,124.3,124.2,8.25656157]
[1741620987507,29.66712774,124.3,124.21,0.14216157]
[1741620987702,0.16335502,124.22,124.21,0.14216157]
[1741620988082,0.16335502,124.22,124.21,8.0508]
[1741620988284,0.16335502,124.22,124.2,0.20516157]
[1741620988592,0.16335502,124.22,124.2,0.34732314]
[1741620988799,0.16335502,124.22,124.2,0.063]
[1741620989199,1.50983271,124.21,124.2,0.063]
[1741620990098,1.67357507,124.22,124.2,0.063]
[1741620990304,9.72387507,124.22,124.2,0.063]
[1741620991009,1.67357507,124.22,124.2,0.063]
[1741620991199,9.72387507,124.22,124.2,0.063]
[1741620991405,1.67357507,124.22,124.2,0.063]
[1741620991609,9.72387507,124.22,124.2,0.063]
[1741620991911,0.16335502,124.22,124.2,0.063]
[1741620992414,0.16335502,124.22,124.2,0.34732314]
[1741620992608,8.21375502,124.22,124.2,0.063]
[1741620992801,0.16335502,124.22,124.2,0.063]
[1741620993725,9.72314359,124.22,124.2,0.063]
[1741620994039,101.94314359,124.22,124.2,0.063]
[1741620994189,89.1508,124.21,124.2,0.063]
[1741620994390,83.1,124.2,124.14,0.063]
[1741620994610,82.61071791,124.19,124.14,0.063]
[1741620994810,99.74964886,124.18,124.14,0.063]
[1741620995018,18.64964886,124.16,124.14,0.0001]
[1741620995312,112.38099162,124.15,124.14,0.0001]
[1741620995689,33.28099162,124.15,124.14,0.0001]
[1741620996190,20.64964886,124.14,124.11,0.0001]
[1741620996498,18.64964886,124.12,124.11,0.0001]
[1741620997901,28.21799911,124.12,124.11,0.0001]
[1741620998499,30.36016068,124.12,124.07,0.063]
[1741620998705,90.78536068,124.12,124.07,0.063]
[1741620998915,2.0,124.11,124.07,0.063]
[1741620999821,0.91509222,124.21,124.13,2.0]
[1741620999998,0.91509222,124.21,124.11,10.19926157]
[1741621000351,18.64964886,124.2,124.09,2.0]
[1741621000543,18.64964886,124.18,124.07,2.063]
[1741621000748,0.91509222,124.17,124.08,2.0]
[1741621000907,0.91509222,124.17,124.07,0.20516157]
[1741621000908,0.91509222,124.17,124.11,2.0]
[1741621001114,19.56474108,124.2,124.12,2.0]
[1741621001334,19.56474108,124.2,124.11,2.0]
[1741621001644,19.56474108,124.2,124.09,2.0]
[1741621001847,18.64964886,124.18,124.07,10.26496157]
[1741621002022,18.64964886,124.16,124.07,0.063]
[1741621002226,18.64964886,124.16,124.07,10.26506157]
[1741621002227,12.03509222,124.15,124.07,10.26506157]
[1741621002426,0.91509222,124.15,124.11,0.063]
[1741621002946,191.92,124.16,124.12,2.0]
[1741621003310,0.91509222,124.15,124.12,2.0]
[1741621003741,0.91509222,124.15,124.11,2.063]
[1741621003945,191.92,124.16,124.12,2.0]
[1741621004135,0.91509222,124.15,124.11,0.063]
[1741621004341,81.1,124.14,124.11,0.063]
[1741621004547,82.01509222,124.13,124.11,0.063]
[1741621004925,0.91509222,124.15,124.11,2.20516157]
[1741621005252,81.1,124.2,124.12,2.0]
[1741621005551,82.01509222,124.2,124.15,2.0]
[1741621005713,82.01509222,124.2,124.11,0.20516157]
[1741621005714,0.91509222,124.2,124.16,2.0]
[1741621006218,0.91509222,124.2,124.13,10.0557]
[1741621006730,89.1516,124.2,124.11,0.063]
[1741621006932,18.64964886,124.18,124.11,0.063]
[1741621007137,12.03509222,124.17,124.11,0.063]
[1741621007334,81.1,124.16,124.11,0.063]
[1741621007545,0.15995941,124.12,124.11,0.063]
[1741621008149,1.07505163,124.12,124.11,0.063]
[1741621008330,0.15995941,124.12,124.11,0.063]
[1741621009047,0.15995941,124.12,124.11,2.34732314]
[1741621009251,0.01430457,124.13,124.12,2.28432314]
[1741621009432,0.16802457,124.16,124.15,2.28432314]
[1741621009632,0.16548606,124.19,124.15,20.933972]
[1741621009848,0.01586705,124.19,124.18,22.28432314]
[1741621010138,0.01586705,124.19,124.18,30.33712314]
[1741621010454,0.01586705,124.19,124.18,48.986772]
[1741621010652,4.17e-06,124.2,124.19,20.933972]
[1741621011068,2.193e-05,124.21,124.2,2.28432314]
[1741621012158,2.193e-05,124.21,124.2,10.33582314]
[1741621012355,0.03,124.33,124.28,2.0]
[1741621012542,0.03,124.33,124.29,2.28432314]
[1741621012747,0.03,124.33,124.29,2.0]
[1741621012942,0.03,124.33,124.28,2.0]
[1741621013133,81.1,124.39,124.3,2.0]
[1741621013356,89.1394,124.39,124.3,2.0]
[1741621013664,18.64964886,124.37,124.28,2.0]
[1741621013864,81.1,124.38,124.29,2.0]
[1741621014175,26.69014886,124.37,124.27,2.0]
[1741621014352,46.79144886,124.37,124.26,2.0]
[1741621014539,81.1,124.36,124.24,2.0]
[1741621014738,18.64964886,124.34,124.23,2.0]
[1741621015138,210.54964886,124.34,124.23,2.0]
[1741621015335,81.1,124.33,124.23,2.0]
[1741621015559,18.64964886,124.32,124.23,2.0]
[1741621016352,8.0444,124.31,124.23,2.0]
[1741621016559,8.0444,124.31,124.21,10.33512314]
[1741621016746,8.0444,124.31,124.22,2.0]
[1741621017350,18.64964886,124.3,124.21,2.0]
[1741621017555,18.64964886,124.28,124.18,2.0]
[1741621017755,18.64964886,124.28,124.17,2.28432314]
[1741621017960,18.64964886,124.28,124.16,2.0]
[1741621018141,18.64964886,124.28,124.17,2.0]
[1741621018346,11.1,124.29,124.15,2.14216157]
[1741621018347,18.64964886,124.26,124.15,2.14216157]
[1741621018660,18.64964886,124.26,124.15,0.14216157]
[1741621018853,18.64964886,124.26,124.15,2.14216157]
[1741621019049,18.64964886,124.26,124.14,2.0]
[1741621019261,18.64964886,124.24,124.13,2.0]
[1741621020655,81.1,124.26,124.2,2.28432314]
[1741621020871,8.0469,124.27,124.18,2.0]
[1741621021060,8.0469,124.27,124.17,2.14216157]
[1741621021261,18.64964886,124.25,124.15,2.7523]
[1741621021484,18.64964886,124.23,124.11,2.8153]
[1741621021687,25.31584886,124.21,124.11,2.8153]
[1741621021853,220.57674886,124.21,124.11,8.2457]
[1741621022174,8.0515,124.2,124.12,0.14216157]
[1741621022689,191.86,124.21,124.15,3.3554]
[1741621022849,19.1504,124.22,124.16,2.7523]
[1741621023045,19.1504,124.22,124.15,5.3554]
[1741621023046,99.74964886,124.21,124.15,3.3554]
[1741621023566,19.1504,124.22,124.15,3.3554]
[1741621024169,19.1504,124.22,124.15,11.41]
[1741621024370,11.1,124.22,124.17,2.7523]
[1741621024573,8.0469,124.27,124.2,2.28432314]
[1741621024747,8.0469,124.27,124.19,5.4452]
[1741621024951,8.0469,124.27,124.19,3.4452]
[1741621025358,8.0469,124.27,124.19,5.4452]
[1741621025568,8.0469,124.27,124.2,2.0]
[1741621025769,28.1643,124.27,124.2,2.0]
[1741621025976,28.1643,124.27,124.19,13.4972]
[1741621026173,8.0469,124.27,124.21,2.0]
[1741621026372,272.96,124.28,124.22,6.2986]
[1741621026373,199.9064,124.28,124.22,6.2986]
[1741621026572,227.01912864,124.28,124.22,6.2986]
[1741621026760,227.01912864,124.28,124.22,3.5463]
[1741621026959,81.1,124.27,124.22,3.5463]
[1741621027357,81.1,124.26,124.22,3.5463]
[1741621027553,0.17028632,124.23,124.22,3.5463]
[1741621028069,8.21978632,124.23,124.22,3.5463]
[1741621028269,0.17028632,124.23,124.22,3.5463]
[1741621029696,0.17028632,124.23,124.22,13.5965]
[1741621029987,0.16482747,124.24,124.23,10.0495]
[1741621030156,0.16482747,124.24,124.21,8.0508]
[1741621030355,0.16482747,124.24,124.22,2.28432314]
[1741621030570,0.16482747,124.24,124.23,2.28432314]
[1741621030862,0.16482747,124.24,124.23,5.67952314]
[1741621031761,0.16482747,124.24,124.23,3.3952]
[1741621032158,0.16482747,124.24,124.23,13.4447]
[1741621032380,0.14584155,124.25,124.24,2.28432314]
[1741621033269,4.155e-05,124.25,124.24,20.933972]
[1741621033469,4.155e-05,124.25,124.24,5.51472314]
[1741621034066,0.1679541,124.27,124.25,8.0482]
[1741621034268,0.1679541,124.27,124.26,2.28432314]
[1741621034563,5.41e-05,124.27,124.26,23.686272]
[1741621034766,0.15115826,124.29,124.26,23.686272]
[1741621034767,0.15115826,124.29,124.28,22.28432314]
[1741621035073,0.15115826,124.29,124.27,3.34702314]
[1741621035675,0.16618761,124.31,124.29,4.5851]
[1741621036279,0.16618761,124.31,124.26,4.72736157]
[1741621036591,0.16618761,124.31,124.26,2.72736157]
[1741621036781,8.21339441,124.3,124.25,2.9115]
[1741621037088,0.16829441,124.3,124.28,2.0]
[1741621037471,0.16829441,124.3,124.29,2.0]
[1741621038385,0.16829441,124.3,124.29,12.91512314]
[1741621038587,0.16829441,124.3,124.29,4.5852]
[1741621038793,0.16829441,124.3,124.29,2.0]
[1741621038994,0.16829441,124.3,124.29,2.28432314]
[1741621039503,0.16618761,124.31,124.3,2.0]
[1741621039798,0.16618761,124.31,124.29,2.0]
[1741621039967,0.16618761,124.31,124.3,2.0]
[1741621040170,0.16618761,124.31,124.3,2.28432314]
[1741621040369,0.16618761,124.31,124.3,13.07262314]
[1741621041598,0.03,124.37,124.34,2.0]
[1741621041893,0.03,124.37,124.34,0.28432314]
[1741621042096,0.03,124.37,124.35,2.0]
[1741621042291,0.03,124.37,124.32,4.372]
[1741621042474,0.03,124.37,124.34,2.0]
[1741621042675,0.03,124.37,124.36,2.28432314]
[1741621043070,0.03,124.37,124.34,2.0]
[1741621043270,0.03,124.37,124.33,12.7814]
[1741621043472,0.03,124.37,124.36,2.28432314]
[1741621043785,0.03,124.37,124.36,20.933972]
[1741621044105,0.03,124.37,124.36,2.28432314]
[1741621044291,0.03,124.37,124.36,10.32542314]
[1741621044496,0.03,124.4,124.39,0.28432314]
[1741621044695,0.03,124.4,124.37,2.28432314]
[1741621044892,0.03,124.4,124.38,2.0]
[1741621045088,0.03,124.4,124.37,2.28432314]
[1741621045392,0.03,124.4,124.39,2.28432314]
[1741621045592,0.03,124.4,124.38,2.0]
[1741621045900,0.03,124.4,124.37,2.14216157]
[1741621046087,0.03,124.4,124.39,2.0]
[1741621046396,0.03,124.4,124.39,10.32352314]
[1741621046610,0.03,124.4,124.39,0.28432314]
[1741621046776,0.03,124.4,124.39,10.32352314]
[1741621046976,0.03,124.4,124.39,13.06182314]
[1741621047197,0.03,124.42,124.41,22.28432314]
[1741621047500,0.03,124.46,124.45,20.933972]
[1741621047797,0.19655245,124.46,124.45,20.933972]
[1741621047981,5.245e-05,124.46,124.45,20.933972]
[1741621048181,8.245e-05,124.47,124.46,40.933972]
[1741621048381,8.245e-05,124.47,124.46,48.968672]
[1741621048581,8.245e-05,124.47,124.46,10.31902314]
[1741621048784,8.245e-05,124.47,124.45,2.0]
[1741621048989,8.245e-05,124.47,124.43,2.0]
[1741621049198,8.245e-05,124.47,124.42,2.0]
[1741621049590,3.4262,124.44,124.37,2.0]
[1741621049798,3.4262,124.44,124.35,2.0]
[1741621049976,3.4262,124.44,124.34,2.0]
[1741621049977,20.0,124.42,124.34,2.0]
[1741621050176,20.0,124.42,124.31,4.08030369]
[1741621050177,3.4262,124.44,124.36,0.14216157]
[1741621050382,3.4262,124.44,124.36,2.28432314]
[1741621050583,26.68624886,124.43,124.34,2.0]
[1741621050785,28.1282,124.43,124.35,2.0]
[1741621050976,8.0366,124.43,124.36,2.28432314]
[1741621051184,11.4623,124.44,124.38,2.0]
[1741621051499,15.0291,124.45,124.4,2.0]
[1741621051813,15.0291,124.45,124.36,2.0]
[1741621052015,18.64964886,124.44,124.34,2.0]
[1741621052189,91.5169,124.43,124.31,2.0]
[1741621052393,18.64964886,124.42,124.32,0.14216157]
[1741621052723,8.0379,124.41,124.36,2.0]
[1741621052935,10.4169,124.43,124.38,2.0]
[1741621053297,18.4537,124.43,124.38,2.0]
[1741621053498,18.4537,124.43,124.37,2.0]
[1741621053796,18.4537,124.43,124.39,2.0]
[1741621054004,10.4169,124.43,124.39,2.0]
[1741621054197,18.4535,124.43,124.36,2.0]
[1741621054419,18.64964886,124.42,124.3,2.0]
[1741621054597,18.64964886,124.4,124.31,2.0]
[1741621054920,11.06,124.39,124.3,2.0]
[1741621055100,8.9866,124.38,124.33,2.0]
[1741621055307,8.9866,124.38,124.3,2.0]
[1741621055500,20.0466,124.38,124.33,2.0]
[1741621055816,8.9866,124.38,124.34,2.0]
[1741621056117,15.82896319,124.38,124.34,2.0]
[1741621056413,8.9866,124.38,124.34,2.0]
[1741621056616,17.0266,124.38,124.34,2.0]
[1741621056818,8.9866,124.38,124.35,2.0]
[1741621057020,17.0264,124.38,124.34,2.0]
[1741621057319,8.9866,124.38,124.34,2.0]
[1741621057498,8.9866,124.38,124.35,2.0]
[1741621057697,191.58,124.39,124.36,2.0]
[1741621058005,199.6192,124.39,124.34,2.0]
[1741621058204,191.58,124.39,124.35,2.0]
[1741621058521,9.1304,124.42,124.37,2.0]
[1741621058821,17.1678,124.42,124.37,2.0]
[1741621059011,2.4328,124.42,124.4,2.0]
[1741621059208,2.3752,124.46,124.43,2.14216157]
[1741621059404,2.3752,124.46,124.42,2.0]
[1741621059609,2.3752,124.46,124.43,2.0]
[1741621059819,0.03008245,124.47,124.45,2.0]
[1741621060028,0.03008245,124.47,124.43,2.0]
[1741621060336,0.03008245,124.47,124.45,2.0]
[1741621060629,0.03008245,124.47,124.46,2.28432314]
[1741621060927,0.03008245,124.47,124.46,2.0]
[1741621061217,0.03008245,124.47,124.41,4.1135291]
[1741621061218,0.03008245,124.47,124.44,2.0]
[1741621061704,0.03008245,124.47,124.43,2.28432314]
[1741621061903,0.03008245,124.47,124.44,2.0]
[1741621062326,0.03008245,124.47,124.43,10.0365]
[1741621062699,0.03008245,124.47,124.44,2.0]